[Event "Kwalificatie NJK B Groningen"]
[Site "Hoogkerk, Netherlands"]
[Date "2023.02.19"]
[Round "5.9"]
[White "Ponomarev, Ivan"]
[Black "Sterk, Ralf"]
[Result "1-0"]
[TimeControl "55 min. + 10 sec./zet"]
[WhiteElo "1801"]
[BlackElo "1592"]

1. c4 {[%emt 00:38:13]} e5 2. g3 c6 {[%emt 00:00:05]} 3. d4 {[%emt 00:00:53]}
exd4 {[%emt 00:00:21]} 4. Qxd4 Nf6 {[%emt 00:00:28]} 5. e4 {[%emt 00:07:24]} c5
{[%emt 00:03:15]} 6. Qd3 {[%emt 00:02:40]} Nc6 {[%emt 00:00:15]} 7. Nc3 {[%emt
00:02:03]} d6 {[%emt 00:01:21]} 8. Nf3 {[%emt 00:03:58]} Bg4 {[%emt 00:03:16]}
9. Bg2 Nd7 {[%emt 00:01:43]} 10. Bf4 {[%emt 00:02:47]} Bxf3 {[%emt 00:01:36]}
11. Qxf3 {[%emt 00:01:47]} g5 {[%emt 00:01:40]} 12. Be3 {[%emt 00:01:31]} Nde5
{[%emt 00:01:43]} 13. Qe2 {[%emt 00:00:06]} Na5 {[%emt 00:01:35]} 14. Rd1
{[%emt 00:03:18]} Rc8 {[%emt 00:07:16]} 15. Bxg5 {[%emt 00:03:02]} Qxg5 {[%emt
00:00:31]} 16. f4 {[%emt 00:01:04]} Qg4 17. fxe5 {[%emt 00:01:17]} Qxe2+ 18.
Kxe2 {[%emt 00:00:35]} Nxc4 {[%emt 00:01:07]} 19. exd6 {[%emt 00:00:14]} Bxd6
{[%emt 00:02:05]} 20. b3 {[%emt 00:06:45]} Be5 {[%emt 00:00:34]} 21. Bh3 {[%emt
00:01:36]} Rb8 {[%emt 00:01:33]} 22. bxc4 {[%emt 00:05:21]} Bxc3 {[%emt
00:00:28]} 23. Rd7 {[%emt 00:00:26]} Bd4 {[%emt 00:01:02]} 24. Rb1 {[%emt
00:04:07]} O-O {[%emt 00:02:22]} 25. Rbxb7 Rxb7 {[%emt 00:00:25]} 26. Rxb7
{[%emt 00:00:06]} a5 27. Bd7 {[%emt 00:02:56]} Kg7 {[%emt 00:02:14]} 28. Kf3
{[%emt 00:00:33]} Kg6 {[%emt 00:01:23]} 29. Bf5+ {[%emt 00:01:04]} Kg7 {[%emt
00:00:21]} 30. g4 {[%emt 00:00:32]} Re8 {[%emt 00:00:46]} 31. h4 {[%emt
00:01:25]} h6 32. a4 Kf6 {[%emt 00:00:38]} 33. Rb6+ {[%emt 00:00:34]} Kg7
{[%emt 00:00:09]} 34. Bd7 {[%emt 00:01:31]} Re7 {[%emt 00:00:42]} 35. Bf5
{[%emt 00:00:18]} Re8 {[%emt 00:00:04]} 36. Rb5 {[%emt 00:01:19]} Ra8 {[%emt
00:00:30]} 37. Bd7 {[%emt 00:00:12]} Ra7 {[%emt 00:00:47]} 38. Bc6 {[%emt
00:00:43]} Ra6 39. Bd5 Ra7 {[%emt 00:01:06]} 40. Kf4 f6 {[%emt 00:02:20]} 41.
Rb6 {[%emt 00:01:22]} Re7 {[%emt 00:00:05]} 42. Ra6 {[%emt 00:00:13]} Bc3
{[%emt 00:00:13]} 43. Rc6 {[%emt 00:00:12]} Bd4 {[%emt 00:00:07]} 44. g5 {[%emt
00:00:16]} hxg5+ {[%emt 00:01:22]} 45. hxg5 fxg5+ 46. Kxg5 Re5+ 47. Kf4 Re7
{[%emt 00:00:53]} 48. Rb6 Bc3 {[%emt 00:00:22]} 49. Rb5 {[%emt 00:01:07]} Bb4
50. e5 Bc3 51. e6 {[%emt 00:00:19]} Bb4 52. Ke5 {[%emt 00:00:19]} Bc3+ {[%emt
00:01:23]} 53. Kd6 Kf6 54. Rb7 {[%emt 00:01:19]} Be5+ {[%emt 00:01:32]} 55. Kc6
Rxb7 {[%emt 00:00:54]} 56. Kxb7 Ke7 {[%emt 00:03:18]} 57. Kb6 Bc3 {[%emt
00:00:26]} 58. Kxc5 {[%emt 00:00:17]} Bb4+ 59. Kc6 {[%emt 00:00:06]} Bc3 {[%emt
00:00:05]} 60. c5 {[%emt 00:00:13]} Bb4 {[%emt 00:00:39]} 61. Kb6 Kd8 {[%emt
00:00:09]} 62. c6 {[%emt 00:00:06]} Kc8 {[%emt 00:00:17]} 63. Be4 {[%emt
00:00:20]} Be7 {[%emt 00:00:05]} 64. Kxa5 {[%emt 00:00:04]} Kc7 65. Kb5 {[%emt
00:00:26]} Bd6 66. a5 {[%emt 00:00:18]} Be7 {[%emt 00:00:09]} 67. a6 Kb8 {[%emt
00:01:13]} 68. c7+ Kc8 69. a7 Bc5 70. a8=Q+ Kxc7 71. Qc6+ 1-0

[Event "Kwalificatie NJK B Groningen"]
[Site "Hoogkerk, Netherlands"]
[Date "2023.02.19"]
[Round "6.1"]
[White "Ritzerveld, Noah"]
[Black "Fallaux, Storm"]
[Result "1-0"]
[TimeControl "55 min. + 10 sec./zet"]
[WhiteElo "1868"]
[BlackElo "1643"]

1. e4 {[%clk 00:55:18]} c5 {[%clk 00:55:18]} {[%emt 00:01:19]} 2. Nf3 {[%clk
00:55:22]} d6 {[%clk 00:55:25]} 3. d4 {[%clk 00:55:26]} cxd4 {[%clk 00:55:31]}
4. Nxd4 {[%clk 00:55:29]} Nf6 {[%clk 00:55:40]} 5. Nc3 {[%clk 00:55:32]} a6
{[%clk 00:55:46]} 6. f3 {[%clk 00:55:23]} e5 {[%clk 00:55:34]} 7. Nb3 {[%clk
00:55:30]} Be6 {[%clk 00:55:38]} 8. Be3 {[%clk 00:55:34]} Be7 {[%clk 00:55:43]}
9. Qd2 {[%clk 00:55:33]} Nbd7 {[%clk 00:55:44]} 10. g4 {[%clk 00:54:59]} {[%emt
00:00:40]} b5 {[%clk 00:55:40]} {[%emt 00:01:00]} 11. g5 {[%clk 00:53:03]}
{[%emt 00:01:17]} Nh5 {[%clk 00:54:43]} {[%emt 00:01:14]} 12. Nd5 {[%clk
00:48:32]} {[%emt 00:04:34]} Bxd5 {[%clk 00:52:43]} {[%emt 00:02:09]} 13. exd5
{[%clk 00:48:14]} {[%emt 00:00:31]} O-O {[%clk 00:51:39]} {[%emt 00:01:18]} 14.
Na5 {[%clk 00:47:21]} {[%emt 00:01:01]} Re8 {[%clk 00:50:43]} {[%emt 00:01:03]}
15. O-O-O {[%clk 00:44:57]} {[%emt 00:02:33]} Rc8 {[%clk 00:47:50]} {[%emt
00:03:04]} 16. Nc6 {[%clk 00:43:06]} {[%emt 00:02:36]} Qc7 {[%clk 00:47:45]} 17.
Bh3 {[%clk 00:41:41]} {[%emt 00:01:53]} f6 {[%clk 00:45:41]} {[%emt 00:01:59]}
18. Be6+ {[%clk 00:41:02]} {[%emt 00:01:10]} Kh8 {[%clk 00:45:35]} 19. Bf7
{[%clk 00:40:32]} {[%emt 00:00:46]} Nf4 {[%clk 00:45:09]} {[%emt 00:00:04]} 20.
Bxe8 {[%clk 00:40:09]} {[%emt 00:00:31]} Rxe8 {[%clk 00:45:16]} {[%emt
00:00:46]} 21. Bxf4 {[%clk 00:39:08]} {[%emt 00:00:27]} exf4 {[%clk 00:45:22]}
{[%emt 00:00:34]} 22. Qxf4 {[%clk 00:38:41]} {[%emt 00:00:12]} fxg5 {[%clk
00:44:13]} {[%emt 00:02:05]} 23. Qf7 {[%clk 00:38:27]} Nf6 {[%clk 00:43:33]}
{[%emt 00:00:25]} 24. Rhe1 {[%clk 00:38:22]} {[%emt 00:00:36]} Ne4 {[%clk
00:40:39]} {[%emt 00:02:54]} 25. Qxe8+ {[%clk 00:38:25]} Bf8 {[%clk 00:40:45]}
26. Qxf8# {[%clk 00:38:28]} {[%emt 00:02:17]} 1-0

[Event "Kwalificatie NJK B Groningen"]
[Site "Hoogkerk, Netherlands"]
[Date "2023.02.19"]
[Round "6.2"]
[White "Niemeijer, LÃ©on"]
[Black "Terlouw, Wouter"]
[Result "0-1"]
[TimeControl "55 min. + 10 sec./zet"]
[WhiteElo "1860"]
[BlackElo "1925"]

1. d4 {[%clk 00:55:18]} {[%emt 00:00:02]} Nf6 {[%clk 00:55:16]} {[%emt
00:00:04]} 2. c4 {[%clk 00:55:26]} {[%emt 00:00:02]} e6 {[%clk 00:55:20]}
{[%emt 00:00:06]} 3. g3 {[%clk 00:55:33]} {[%emt 00:00:03]} Bb4+ {[%clk
00:55:26]} {[%emt 00:00:04]} 4. Bd2 {[%clk 00:55:35]} {[%emt 00:00:09]} Be7
{[%clk 00:55:33]} {[%emt 00:00:02]} 5. Bg2 {[%clk 00:55:38]} {[%emt 00:00:06]}
d5 {[%clk 00:55:35]} {[%emt 00:00:08]} 6. Nf3 {[%clk 00:55:39]} {[%emt
00:00:10]} c6 {[%clk 00:55:34]} {[%emt 00:00:11]} 7. Qc2 {[%clk 00:54:10]}
{[%emt 00:01:39]} O-O {[%clk 00:55:29]} {[%emt 00:00:15]} 8. O-O {[%clk
00:54:08]} {[%emt 00:00:12]} Nbd7 {[%clk 00:55:25]} {[%emt 00:00:14]} 9. b3
{[%clk 00:53:17]} {[%emt 00:01:01]} b6 {[%clk 00:54:47]} {[%emt 00:00:49]} 10.
cxd5 {[%clk 00:51:36]} {[%emt 00:01:50]} cxd5 {[%clk 00:54:44]} {[%emt
00:00:13]} 11. Nc3 {[%clk 00:51:21]} {[%emt 00:00:25]} Ba6 {[%clk 00:54:10]}
{[%emt 00:00:43]} 12. Rfc1 {[%clk 00:50:57]} {[%emt 00:00:35]} Ba3 {[%clk
00:53:43]} {[%emt 00:00:35]} 13. Re1 {[%clk 00:50:45]} {[%emt 00:00:24]} Rc8
{[%clk 00:53:01]} {[%emt 00:00:52]} 14. Bc1 {[%clk 00:50:26]} {[%emt 00:00:28]}
Bb4 {[%clk 00:51:49]} {[%emt 00:01:23]} 15. Bd2 {[%clk 00:32:36]} {[%emt
00:17:59]} Ne4 {[%clk 00:51:42]} {[%emt 00:00:17]} 16. Ng5 {[%clk 00:32:13]}
{[%emt 00:00:34]} Nxg5 {[%clk 00:50:33]} {[%emt 00:01:19]} 17. h4 {[%clk
00:31:27]} {[%emt 00:00:56]} Ne4 {[%clk 00:50:26]} {[%emt 00:00:17]} 18. Bxe4
{[%clk 00:31:34]} {[%emt 00:00:03]} dxe4 {[%clk 00:50:29]} {[%emt 00:00:07]} 19.
Qb2 {[%clk 00:31:24]} {[%emt 00:00:19]} e3 {[%clk 00:49:47]} {[%emt 00:00:53]}
20. fxe3 {[%clk 00:31:21]} {[%emt 00:00:13]} Nf6 {[%clk 00:49:04]} {[%emt
00:00:53]} 21. Ne4 {[%clk 00:30:00]} {[%emt 00:01:32]} Nxe4 {[%clk 00:49:00]}
{[%emt 00:00:14]} 22. Bxb4 {[%clk 00:30:03]} {[%emt 00:00:06]} Qc7 {[%clk
00:48:57]} {[%emt 00:00:12]} 23. Rf1 {[%clk 00:23:57]} {[%emt 00:06:17]} Qxg3+
{[%clk 00:49:01]} {[%emt 00:00:06]} 24. Kh1 {[%clk 00:23:59]} {[%emt 00:00:07]}
Bb7 {[%clk 00:49:06]} {[%emt 00:00:07]} 0-1

[Event "Kwalificatie NJK B Groningen"]
[Site "Hoogkerk, Netherlands"]
[Date "2023.02.19"]
[Round "6.3"]
[White "Van Foreest, Nanne"]
[Black "Knippenberg, Hidde"]
[Result "1-0"]
[TimeControl "55 min. + 10 sec./zet"]
[WhiteElo "1862"]
[BlackElo "1721"]

1. e4 {[%clk 00:55:18]} {[%emt 00:00:02]} c5 {[%clk 00:55:18]} {[%emt
00:00:03]} 2. c3 {[%clk 00:55:24]} {[%emt 00:00:03]} g6 {[%clk 00:55:25]}
{[%emt 00:00:03]} 3. d4 {[%clk 00:55:31]} {[%emt 00:00:03]} cxd4 {[%clk
00:55:32]} {[%emt 00:00:03]} 4. cxd4 {[%clk 00:55:39]} {[%emt 00:00:03]} e5
{[%clk 00:55:37]} {[%emt 00:00:05]} 5. Nf3 {[%clk 00:54:55]} {[%emt 00:00:53]}
exd4 {[%clk 00:53:30]} {[%emt 00:02:18]} 6. Qxd4 {[%clk 00:54:16]} {[%emt
00:00:49]} f6 {[%clk 00:51:55]} {[%emt 00:01:44]} 7. Bc4 {[%clk 00:49:58]}
{[%emt 00:04:28]} Nc6 {[%clk 00:51:22]} {[%emt 00:00:43]} 8. Qd5 {[%clk
00:49:45]} {[%emt 00:00:24]} Qe7 {[%clk 00:51:28]} {[%emt 00:00:04]} 9. O-O
{[%clk 00:48:56]} {[%emt 00:00:58]} Nb4 {[%clk 00:50:18]} {[%emt 00:01:20]} 10.
Qd1 {[%clk 00:48:25]} {[%emt 00:00:41]} d6 {[%clk 00:48:39]} {[%emt 00:01:49]}
11. Qb3 {[%clk 00:48:03]} {[%emt 00:00:32]} 1-0

[Event "Kwalificatie NJK B Groningen"]
[Site "Hoogkerk, Netherlands"]
[Date "2023.02.19"]
[Round "6.4"]
[White "Roorda, Cas"]
[Black "Ponomarev, Ivan"]
[Result "1-0"]
[TimeControl "55 min. + 10 sec./zet"]
[WhiteElo "1654"]
[BlackElo "1801"]

1. e4 {[%clk 00:55:19]} c5 {[%clk 00:55:17]} {[%emt 00:00:04]} 2. Nf3 {[%clk
00:55:27]} {[%emt 00:00:02]} e6 {[%clk 00:55:23]} {[%emt 00:00:04]} 3. d4
{[%clk 00:55:34]} {[%emt 00:00:03]} cxd4 {[%clk 00:55:30]} {[%emt 00:00:03]} 4.
Nxd4 {[%clk 00:55:42]} {[%emt 00:00:02]} Nc6 {[%clk 00:55:34]} {[%emt
00:00:05]} 5. Nc3 {[%clk 00:55:46]} {[%emt 00:00:07]} a6 {[%clk 00:55:42]}
{[%emt 00:00:03]} 6. Bf4 {[%clk 00:55:48]} {[%emt 00:00:07]} Bb4 {[%clk
00:54:33]} {[%emt 00:01:19]} 7. Nxc6 {[%clk 00:55:47]} {[%emt 00:00:10]} Bxc3+
{[%clk 00:53:27]} {[%emt 00:01:17]} 8. bxc3 {[%clk 00:55:53]} {[%emt 00:00:04]}
dxc6 {[%clk 00:50:39]} {[%emt 00:02:58]} 9. Qd3 {[%clk 00:44:30]} {[%emt
00:11:33]} Ne7 {[%clk 00:44:13]} {[%emt 00:06:35]} 10. Rd1 {[%clk 00:43:05]}
{[%emt 00:01:35]} Qxd3 {[%clk 00:42:36]} {[%emt 00:01:47]} 11. cxd3 {[%clk
00:40:14]} {[%emt 00:03:02]} Ng6 {[%clk 00:38:35]} {[%emt 00:04:10]} 12. Bd6
{[%clk 00:39:20]} {[%emt 00:01:04]} e5 {[%clk 00:36:51]} {[%emt 00:01:54]} 13.
d4 {[%clk 00:36:27]} {[%emt 00:03:04]} exd4 {[%clk 00:35:26]} {[%emt 00:01:35]}
14. cxd4 {[%clk 00:36:22]} {[%emt 00:00:15]} Be6 {[%clk 00:28:11]} {[%emt
00:07:24]} 15. Rd2 {[%clk 00:29:39]} {[%emt 00:06:53]} O-O-O {[%clk 00:23:27]}
{[%emt 00:04:55]} 16. Bc5 {[%emt 00:04:48]} Rhe8 {[%clk 00:18:45]} {[%emt
00:04:49]} 17. f3 {[%clk 00:22:52]} {[%emt 00:02:20]} Ne7 {[%clk 00:14:15]}
{[%emt 00:04:40]} 18. Bd3 {[%clk 00:21:14]} {[%emt 00:01:49]} f5 {[%clk
00:10:15]} {[%emt 00:04:10]} 19. O-O {[%clk 00:20:28]} {[%emt 00:00:56]} f4
{[%clk 00:07:13]} {[%emt 00:03:12]} 20. Rc1 {[%clk 00:20:13]} {[%emt 00:00:25]}
Kb8 {[%clk 00:06:51]} {[%emt 00:00:30]} 21. Rb2 {[%clk 00:19:38]} {[%emt
00:00:47]} Ka8 {[%clk 00:06:34]} {[%emt 00:00:27]} 22. Rcb1 {[%clk 00:14:40]}
{[%emt 00:05:08]} b5 {[%clk 00:04:20]} {[%emt 00:02:24]} 23. a4 {[%clk
00:13:41]} {[%emt 00:01:09]} Ng6 {[%clk 00:03:49]} {[%emt 00:00:41]} 24. axb5
{[%clk 00:13:13]} {[%emt 00:00:38]} cxb5 {[%clk 00:03:47]} {[%emt 00:00:12]} 25.
Bxb5 {[%clk 00:12:33]} {[%emt 00:00:49]} axb5 {[%clk 00:03:12]} {[%emt
00:00:46]} 26. Rxb5 {[%clk 00:12:38]} {[%emt 00:00:05]} 1-0

[Event "Kwalificatie NJK B Groningen"]
[Site "Hoogkerk, Netherlands"]
[Date "2023.02.19"]
[Round "6.5"]
[White "Snijders, Take"]
[Black "Krylov, Philippe"]
[Result "1/2-1/2"]
[TimeControl "55 min. + 10 sec./zet"]
[WhiteElo "1848"]
[BlackElo "1862"]

1. e4 {[%clk 00:55:18]} {[%emt 00:00:21]} c6 {[%clk 00:55:17]} 2. d4 {[%clk
00:55:24]} d5 {[%clk 00:55:24]} 3. e5 {[%clk 00:55:32]} Bf5 {[%clk 00:55:31]} 4.
h4 {[%clk 00:55:38]} {[%emt 00:00:04]} h5 {[%clk 00:55:38]} 5. Bd3 {[%clk
00:55:46]} {[%emt 00:00:15]} Bxd3 {[%clk 00:55:43]} {[%emt 00:00:10]} 6. Qxd3
{[%clk 00:55:53]} Qa5+ {[%clk 00:55:47]} 7. Nd2 {[%clk 00:55:43]} {[%emt
00:00:39]} e6 {[%clk 00:55:51]} 8. Ngf3 {[%clk 00:55:48]} {[%emt 00:00:18]} Qa6
{[%clk 00:55:34]} 9. c4 {[%clk 00:55:08]} {[%emt 00:00:40]} Nd7 {[%clk
00:55:04]} {[%emt 00:00:41]} 10. O-O {[%clk 00:54:52]} {[%emt 00:01:15]} Ne7
{[%clk 00:53:35]} {[%emt 00:00:48]} 11. b3 {[%clk 00:51:47]} {[%emt 00:03:20]}
c5 {[%clk 00:52:06]} {[%emt 00:02:29]} 12. Bb2 {[%clk 00:49:44]} {[%emt
00:01:22]} Nf5 {[%clk 00:48:50]} {[%emt 00:03:23]} 13. Rfd1 {[%clk 00:48:01]}
{[%emt 00:01:53]} Be7 {[%clk 00:47:46]} {[%emt 00:01:14]} 14. g3 {[%clk
00:48:02]} {[%emt 00:00:41]} g6 {[%clk 00:43:42]} {[%emt 00:03:40]} 15. Nf1
{[%clk 00:46:15]} {[%emt 00:02:20]} cxd4 {[%clk 00:40:24]} {[%emt 00:03:09]} 16.
Bxd4 {[%clk 00:43:30]} {[%emt 00:02:52]} dxc4 {[%clk 00:38:20]} {[%emt
00:02:14]} 17. bxc4 {[%clk 00:41:55]} {[%emt 00:01:46]} O-O {[%clk 00:36:56]}
{[%emt 00:01:33]} 18. Ne3 {[%clk 00:39:43]} {[%emt 00:03:03]} Nxe3 {[%clk
00:30:38]} {[%emt 00:06:26]} 19. Qxe3 {[%clk 00:33:44]} {[%emt 00:05:35]} Rfd8
{[%clk 00:28:24]} {[%emt 00:02:19]} 20. Qb3 {[%clk 00:28:29]} {[%emt 00:05:25]}
b6 {[%clk 00:19:29]} {[%emt 00:09:33]} 21. Rd2 {[%clk 00:23:44]} {[%emt
00:04:28]} Rac8 {[%clk 00:17:05]} {[%emt 00:02:33]} 22. Rad1 {[%clk 00:20:43]}
{[%emt 00:03:25]} Nb8 {[%clk 00:10:54]} {[%emt 00:06:49]} 23. Rc1 {[%clk
00:18:24]} {[%emt 00:01:52]} Nc6 {[%clk 00:10:01]} {[%emt 00:01:24]} 24. Bc3
{[%clk 00:17:38]} {[%emt 00:01:38]} Rxd2 {[%clk 00:08:13]} {[%emt 00:01:37]} 25.
Bxd2 {[%clk 00:15:08]} {[%emt 00:01:53]} Rd8 {[%clk 00:07:42]} {[%emt
00:01:55]} 26. Qb5 {[%clk 00:14:30]} Qxb5 {[%clk 00:05:34]} {[%emt 00:02:41]}
27. cxb5 {[%clk 00:14:36]} Nd4 {[%clk 00:05:40]} 28. Nxd4 {[%clk 00:14:17]}
Rxd4 {[%clk 00:05:49]} 29. Be3 {[%clk 00:13:08]} {[%emt 00:02:11]} Ra4 {[%clk
00:05:25]} 30. Rc8+ {[%clk 00:11:21]} {[%emt 00:01:29]} Kg7 {[%clk 00:05:19]}
{[%emt 00:00:44]} 31. Ra8 {[%clk 00:10:55]} {[%emt 00:00:07]} Rxa2 {[%clk
00:03:34]} {[%emt 00:01:51]} 32. Bxb6 {[%clk 00:10:36]} {[%emt 00:00:54]} Rb2
{[%clk 00:03:41]} 33. Rxa7 {[%clk 00:10:05]} {[%emt 00:00:55]} Rxb5 {[%clk
00:03:50]} 34. Be3 {[%clk 00:08:15]} {[%emt 00:01:28]} Bc5 {[%clk 00:03:51]}
{[%emt 00:00:27]} 35. Bxc5 {[%clk 00:08:08]} {[%emt 00:00:35]} Rxc5 {[%clk
00:04:00]} 36. f4 {[%clk 00:08:07]} Rc2 {[%clk 00:03:45]} 37. Rb7 {[%clk
00:07:58]} {[%emt 00:01:11]} Kf8 {[%clk 00:03:26]} 1/2-1/2

[Event "Kwalificatie NJK B Groningen"]
[Site "Hoogkerk, Netherlands"]
[Date "2023.02.19"]
[Round "6.6"]
[White "Westerhof, Fleur"]
[Black "Damen, Josephine"]
[Result "0-1"]
[TimeControl "55 min. + 10 sec./zet"]
[WhiteElo "1623"]
[BlackElo "1600"]

1. e4 {[%clk 00:55:17]} {[%emt 00:38:05]} e5 {[%clk 00:55:17]} 2. Nf3 {[%clk
00:55:16]} Nc6 {[%clk 00:55:23]} 3. d4 {[%clk 00:55:10]} {[%emt 00:00:18]} exd4
{[%clk 00:55:27]} 4. Bc4 {[%clk 00:55:09]} {[%emt 00:00:06]} Nf6 {[%clk
00:55:32]} {[%emt 00:00:13]} 5. O-O {[%clk 00:54:58]} {[%emt 00:00:09]} Nxe4
{[%clk 00:54:36]} {[%emt 00:01:12]} 6. Re1 {[%clk 00:54:56]} {[%emt 00:00:14]}
d5 {[%clk 00:54:30]} {[%emt 00:00:16]} 7. Bxd5 {[%clk 00:54:53]} {[%emt
00:00:26]} Qxd5 {[%clk 00:54:35]} 8. Nc3 {[%clk 00:54:47]} {[%emt 00:00:05]}
Qa5 {[%clk 00:54:29]} {[%emt 00:00:30]} 9. Nxe4 {[%clk 00:54:11]} {[%emt
00:00:28]} Be6 {[%clk 00:53:24]} {[%emt 00:01:28]} 10. Bd2 {[%clk 00:50:08]}
{[%emt 00:04:20]} Bb4 {[%clk 00:49:08]} {[%emt 00:04:07]} 11. Bxb4 {[%clk
00:48:36]} {[%emt 00:01:42]} Qxb4 {[%clk 00:45:46]} {[%emt 00:03:49]} 12. Neg5
{[%clk 00:44:09]} {[%emt 00:04:17]} O-O-O {[%clk 00:32:18]} {[%emt 00:13:46]}
13. Nxe6 {[%clk 00:37:57]} {[%emt 00:06:15]} fxe6 {[%clk 00:32:21]} {[%emt
00:00:06]} 14. b3 {[%clk 00:34:59]} {[%emt 00:03:08]} Rhe8 {[%clk 00:27:42]}
{[%emt 00:04:59]} 15. Ng5 {[%clk 00:29:56]} {[%emt 00:05:10]} e5 {[%clk
00:23:00]} {[%emt 00:04:44]} 16. Nxh7 {[%clk 00:27:11]} {[%emt 00:02:59]} d3
{[%clk 00:14:48]} {[%emt 00:08:23]} 17. Ng5 {[%clk 00:21:23]} {[%emt 00:06:01]}
d2 {[%clk 00:09:44]} {[%emt 00:05:05]} 18. Re3 {[%clk 00:12:05]} {[%emt
00:09:32]} Rd7 {[%clk 00:05:22]} {[%emt 00:04:38]} 19. a3 {[%clk 00:03:52]}
{[%emt 00:08:12]} Qe7 {[%clk 00:03:04]} {[%emt 00:02:29]} 20. Ne4 {[%clk
00:03:33]} {[%emt 00:00:33]} Red8 {[%clk 00:02:00]} {[%emt 00:01:11]} 21. b4
{[%clk 00:03:05]} {[%emt 00:00:38]} Qh4 {[%clk 00:00:18]} {[%emt 00:01:52]} 22.
Ra2 {[%clk 00:01:18]} {[%emt 00:02:10]} Nd4 {[%clk 00:00:22]} 23. c3 {[%clk
00:00:48]} {[%emt 00:00:34]} Nb3 {[%clk 00:00:23]} {[%emt 00:00:11]} 24. Rb2
{[%clk 00:00:40]} {[%emt 00:00:18]} Rd3 {[%clk 00:00:15]} {[%emt 00:00:14]} 25.
Rxd3 {[%clk 00:00:28]} {[%emt 00:00:27]} Rxd3 {[%clk 00:00:17]} {[%emt
00:00:05]} 26. Rxb3 {[%clk 00:00:23]} {[%emt 00:00:18]} Qxe4 {[%clk 00:00:23]}
27. Kf1 {[%clk 00:00:27]} {[%emt 00:00:05]} Rd6 {[%clk 00:00:22]} {[%emt
00:00:12]} 28. f3 {[%clk 00:00:13]} {[%emt 00:00:29]} Qd3+ {[%clk 00:00:30]} 29.
Kg1 {[%clk 00:00:22]} Qe3+ {[%clk 00:00:38]} 30. Kf1 {[%clk 00:00:30]} {[%emt
00:00:05]} Rd3 {[%clk 00:00:27]} {[%emt 00:00:20]} 31. Rb2 {[%clk 00:00:22]}
{[%emt 00:00:14]} Rd6 {[%clk 00:00:22]} {[%emt 00:00:16]} 32. Rb3 {[%clk
00:00:29]} {[%emt 00:00:26]} a6 {[%clk 00:00:27]} 33. c4 {[%clk 00:00:29]} Rd3
{[%clk 00:00:35]} 34. Rb2 {[%clk 00:00:33]} {[%emt 00:00:14]} Rd4 {[%clk
00:00:34]} 35. c5 {[%clk 00:00:16]} {[%emt 00:00:25]} Kd7 {[%clk 00:00:24]}
{[%emt 00:00:20]} 36. Ra2 {[%clk 00:00:19]} {[%emt 00:00:07]} Ke7 {[%clk
00:00:20]} {[%emt 00:00:15]} 37. h3 {[%clk 00:00:14]} {[%emt 00:00:22]} Qd3+
{[%clk 00:00:16]} {[%emt 00:00:06]} 38. Kg1 {[%clk 00:00:14]} {[%emt 00:00:10]}
Kf6 {[%clk 00:00:20]} {[%emt 00:00:09]} 39. Kh2 {[%clk 00:00:21]} {[%emt
00:00:09]} Qe3 {[%clk 00:00:22]} 40. h4 {[%clk 00:00:13]} {[%emt 00:00:21]}
Rxh4+ {[%clk 00:00:20]} {[%emt 00:00:22]} 41. Kg3 {[%clk 00:00:22]} Qe1+ {[%clk
00:00:22]} 0-1